bitfinex-derivatives/quotes_ETHF0:USTF0_20250405
["timestamp","ask_amount","ask_price","bid_price","bid_amount"]
[1743819471974,1.517,1817.4,1817.1,4.6393]
[1743819472180,5.01359,1817.3,1817.1,5.41002]
[1743819472380,1.4182,1817.2,1817.1,5.41002]
[1743819472680,2.1234,1817.2,1817.1,5.41002]
[1743819472983,2.8941,1817.2,1817.1,5.41002]
[1743819474277,2.1234,1817.2,1817.1,5.41002]
[1743819474479,1.4182,1817.2,1817.1,5.41002]
[1743819475086,4.2429,1817.3,1817.2,0.7707]
[1743819475277,5.7294,1817.3,1817.2,2.1977]
[1743819475478,6.50006,1817.3,1817.2,2.1977]
[1743819476680,5.7294,1817.3,1817.2,2.1977]
[1743819477577,6.50006,1817.3,1817.2,2.1977]
[1743819478174,6.50006,1817.3,1817.2,1.427]
[1743819479883,6.50006,1817.3,1817.2,2.1977]
[1743819480588,6.50006,1817.3,1817.2,1.427]
[1743819481089,6.50006,1817.3,1817.1,3.97852]
[1743819481389,1.5177,1817.2,1817.1,5.38512]
[1743819482894,5.01356,1817.3,1817.2,0.7707]
[1743819483188,5.01356,1817.3,1817.2,2.1773]
[1743819485491,5.01356,1817.3,1817.2,1.4066]
[1743819485789,5.01356,1817.3,1817.2,2.1773]
[1743819486095,5.01356,1817.3,1817.2,1.4066]
[1743819487393,5.01356,1817.3,1817.2,2.1773]
[1743819489294,4.2429,1817.3,1817.2,2.1773]
[1743819489898,5.6884,1817.3,1817.2,2.1773]
[1743819491796,6.45906,1817.3,1817.2,2.1773]
[1743819491997,5.6884,1817.3,1817.2,2.1773]
[1743819493796,6.45906,1817.3,1817.2,2.1773]
[1743819494700,6.45906,1817.3,1817.2,0.7707]
[1743819494897,6.45906,1817.3,1817.1,3.2078]
[1743819494898,6.45906,1817.3,1817.1,3.97851]
[1743819495195,2.1304,1817.2,1817.1,3.97851]
[1743819495901,2.1304,1817.2,1817.1,5.38181]
[1743819496596,4.2429,1817.3,1817.2,0.7707]
[1743819496900,4.9043,1817.5,1817.4,0.77062]
[1743819497497,4.9043,1817.5,1817.4,2.22422]
[1743819498696,5.67488,1817.5,1817.4,1.4536]
[1743819499703,5.67488,1817.5,1817.3,2.27403]
[1743819499903,1.5234,1817.4,1817.3,0.77063]
[1743819500402,1.5234,1817.4,1817.3,2.25493]
[1743819506914,3.506,1817.5,1817.4,0.77062]
[1743819507115,4.9092,1817.5,1817.4,2.28792]
[1743819509113,5.67978,1817.5,1817.4,2.28792]
[1743819509315,3.506,1817.5,1817.4,2.28792]
[1743819509809,4.27658,1817.5,1817.4,2.28792]
[1743819510015,5.68548,1817.5,1817.4,2.28792]
[1743819510715,4.9149,1817.5,1817.4,2.28792]
[1743819511816,5.68548,1817.5,1817.4,1.5173]
[1743819512015,0.77065,1817.4,1817.2,5.38648]
[1743819512216,2.96145,1817.4,1817.2,5.38648]
[1743819512616,1.4848,1817.3,1817.2,5.38648]
[1743819515423,1.4848,1817.3,1817.2,2.17868]
[1743819515624,1.4848,1817.3,1817.2,5.38648]
[1743819516527,0.706,1817.4,1817.3,0.77066]
[1743819516720,3.506,1817.5,1817.4,0.77062]
[1743819516921,2.93914516,1817.6,1817.5,0.77058]
[1743819517121,0.00824516,1817.6,1817.5,0.77058]
[1743819517927,0.00824516,1817.6,1817.5,3.72338]
[1743819520530,0.00824516,1817.6,1817.5,4.49122259]
[1743819520728,0.00824516,1817.6,1817.5,3.72338]
[1743819522632,0.00824516,1817.6,1817.5,4.49103599]
[1743819522832,0.6931,1818.0,1817.9,0.77041]
[1743819523032,4.1981,1818.0,1817.9,0.77041]
[1743819524330,4.1981,1818.0,1817.9,2.17691]
[1743819525134,4.96846,1818.0,1817.9,2.17691]
[1743819525335,5.7281,1818.0,1817.9,2.17691]
[1743819525540,3.505,1818.0,1817.9,2.17691]
[1743819526535,0.00824516,1818.1,1818.0,0.77036]
[1743819526835,0.00824516,1818.1,1818.0,3.97816]
[1743819534439,2.25996516,1818.1,1818.0,3.2078]
[1743819535647,2.25996516,1818.1,1818.0,3.97816]
[1743819537040,2.25996516,1818.1,1818.0,3.2078]
[1743819537240,5.76396516,1818.1,1818.0,3.2078]
[1743819537740,4.99364516,1818.1,1818.0,3.97816]
[1743819538739,3.51224516,1818.1,1818.0,3.97816]
[1743819540647,0.00824516,1818.1,1818.0,3.97816]
[1743819541845,0.77856516,1818.1,1818.0,3.2078]
[1743819542051,2.26136516,1818.1,1818.0,3.2078]
[1743819543346,0.77041,1817.9,1817.8,0.77867516]
[1743819543542,0.77041,1817.9,1817.8,0.00824516]
[1743819544039,3.01131,1817.9,1817.8,0.00824516]
[1743819545150,0.77055,1817.6,1817.4,0.77061]
[1743819545350,2.23601,1817.5,1817.3,2.30483]
[1743819545547,0.77062,1817.4,1817.2,3.97848]
[1743819545845,0.77062,1817.4,1817.3,0.77066]
[1743819545846,1.3983,1817.4,1817.3,0.77066]
[1743819546142,0.77058,1817.5,1817.3,2.30484]
[1743819546450,1.3983,1817.4,1817.3,2.30484]
[1743819547652,2.16892,1817.4,1817.3,1.5342]
[1743819547856,2.16892,1817.4,1817.2,3.97849]
[1743819547857,3.59012,1817.4,1817.2,3.97849]
[1743819548147,1.4393,1817.3,1817.2,3.97849]
[1743819548350,4.9433,1817.3,1817.2,3.97849]
[1743819548550,5.71396,1817.3,1817.2,3.2078]
[1743819548848,5.71396,1817.3,1817.1,2.20542]
[1743819549041,1.4393,1817.2,1817.1,2.20542]
[1743819549345,1.4393,1817.2,1817.1,1.50952]
[1743819550653,2.21,1817.2,1817.1,0.7388]
[1743819551248,2.21,1817.2,1817.0,2.29966]
[1743819551449,1.4897,1817.1,1817.0,2.29966]
[1743819553554,4.27468,1817.3,1817.1,0.77072]
[1743819553752,3.9067,1817.4,1817.3,0.77066]
[1743819554045,3.504,1817.4,1817.3,0.77066]
[1743819554239,0.7706,1817.5,1817.3,0.77066]
[1743819554438,0.77062,1817.4,1817.3,2.25116]
[1743819554950,0.77062,1817.4,1817.3,1.4805]
[1743819555156,1.4915,1817.5,1817.4,0.77062]
[1743819556449,2.26208,1817.5,1817.4,0.77062]
[1743819556955,2.26208,1817.5,1817.3,1.4805]
[1743819557369,2.26208,1817.5,1817.3,2.25113]
[1743819557655,2.26208,1817.5,1817.4,1.4676]
[1743819557856,2.98128,1817.5,1817.4,1.4676]
[1743819559760,2.98128,1817.5,1817.4,2.23822]
[1743819560056,2.98128,1817.5,1817.4,1.4676]
[1743819560356,2.98128,1817.5,1817.4,2.23822]
[1743819560557,2.98128,1817.5,1817.4,1.4676]
[1743819562257,0.77062,1817.4,1817.3,0.77063]
[1743819562551,1.4753,1817.4,1817.3,2.21013]
[1743819562754,0.7192,1817.5,1817.4,0.77062]
[1743819562955,0.7192,1817.5,1817.4,2.21012]
[1743819563162,1.48978,1817.5,1817.4,1.4395]
[1743819563956,2.91208,1817.5,1817.4,1.4395]
[1743819564256,2.91208,1817.5,1817.4,2.21012]
[1743819564859,2.91208,1817.5,1817.4,1.4395]
[1743819567064,2.91208,1817.5,1817.4,2.21012]
[1743819567859,2.91208,1817.5,1817.4,1.4395]
[1743819568362,2.91208,1817.5,1817.4,2.21012]
[1743819571656,2.91208,1817.5,1817.4,1.4395]
[1743819571862,2.91208,1817.5,1817.4,2.21012]
[1743819573765,2.91208,1817.5,1817.4,1.4395]
[1743819575066,2.91208,1817.5,1817.3,0.77063]
[1743819575267,2.91208,1817.5,1817.4,1.4653]
[1743819577674,7.48337,1817.6,1817.4,1.4653]
[1743819577863,7.48337,1817.6,1817.4,2.23589]
[1743819578063,7.48337,1817.6,1817.5,2.1822]
[1743819578267,8.89547,1817.6,1817.5,2.1822]
[1743819579469,8.89547,1817.6,1817.5,2.95278]
[1743819580569,8.89547,1817.6,1817.5,2.1822]
[1743819582771,8.89547,1817.6,1817.5,1.4653]
[1743819586270,5.68767,1817.6,1817.5,1.4653]
[1743819586471,8.89547,1817.6,1817.5,1.4653]
[1743819587466,5.39047,1817.6,1817.5,1.4653]
[1743819587770,8.89547,1817.6,1817.5,3.00068]
[1743819590073,5.68767,1817.6,1817.5,3.00068]
[1743819590374,8.1249,1817.6,1817.5,3.00068]
[1743819590570,8.89543,1817.6,1817.5,3.00068]
[1743819592474,7.48333,1817.6,1817.5,3.00068]
[1743819593271,4.27553,1817.6,1817.5,3.00068]
[1743819593470,7.48333,1817.6,1817.5,3.00068]
[1743819593977,8.95443,1817.6,1817.5,2.2301]
[1743819594275,0.77058,1817.5,1817.3,3.80363]
[1743819594475,2.95128,1817.5,1817.3,3.80363]
[1743819595478,2.1807,1817.5,1817.2,3.97849]
[1743819595674,2.1835,1817.4,1817.2,4.74479]
[1743819595869,1.4711,1817.3,1817.2,4.74479]
[1743819596076,1.4711,1817.3,1817.2,5.51399048]
[1743819602485,1.4711,1817.3,1817.2,2.30619048]
[1743819602683,1.4711,1817.3,1817.2,5.51399048]
[1743819603079,1.4711,1817.3,1817.2,2.30619048]
[1743819603285,1.4711,1817.3,1817.2,5.51399048]
[1743819603586,1.4711,1817.3,1817.2,5.51389629]
[1743819605083,1.4711,1817.3,1817.2,2.30609629]
[1743819605583,1.4711,1817.3,1817.2,5.51389629]
[1743819605779,1.4711,1817.3,1817.2,4.74759629]
[1743819605980,0.7707,1817.2,1817.1,2.29443]
[1743819606182,1.5021,1817.2,1817.1,2.29284632]
[1743819606481,1.5021,1817.2,1817.0,5.47846]
[1743819606676,2.2886,1817.1,1817.0,5.47846]
[1743819606883,2.2886,1817.1,1817.0,6.24749553]
[1743819608284,0.7314,1817.2,1817.1,0.77075]
[1743819608583,1.5289,1817.2,1817.1,2.19555]
[1743819618692,2.2996,1817.2,1817.1,2.19555]
[1743819618880,1.5289,1817.2,1817.1,2.19555]
[1743819619186,5.03778,1817.3,1817.1,2.19555]
[1743819619187,5.03778,1817.3,1817.2,0.7707]
[1743819619491,5.03778,1817.3,1817.2,2.1769]
[1743819620580,3.9391,1817.5,1817.2,1.4062]
[1743819620786,10.33491,1817.7,1817.5,0.77053]
[1743819621189,10.33491,1817.7,1817.6,1.4207]
[1743819624501,35.46046,1817.8,1817.6,1.4207]
[1743819624704,3.505,1817.7,1817.6,1.4207]
[1743819624894,3.505,1817.9,1817.6,1.4207]
[1743819625094,3.505,1817.9,1817.8,0.77045]
[1743819625593,3.505,1817.9,1817.8,2.22705]
[1743819626089,4.27541,1817.9,1817.8,1.4566]
[1743819626402,7.17671,1817.9,1817.8,1.4566]
[1743819627795,7.17671,1817.9,1817.7,0.7576]
[1743819627796,0.77047,1817.8,1817.6,3.97831]
[1743819628200,2.22707,1817.8,1817.7,1.4427]
[1743819633106,0.77053,1817.6,1817.4,1.50969]
[1743819633403,1.4678,1817.7,1817.5,2.23995]
[1743819633594,2.23832,1817.7,1817.5,2.23995]
[1743819633798,0.77053,1817.6,1817.5,2.23995]
[1743819634205,0.77053,1817.6,1817.5,2.23998]
[1743819634503,0.77053,1817.6,1817.5,1.4694]
[1743819635907,2.27423,1817.6,1817.5,1.4694]
[1743819636409,0.77052,1817.7,1817.6,0.77053]
[1743819636605,0.77052,1817.7,1817.5,1.4694]
[1743819636807,3.97828,1817.8,1817.6,0.77053]
[1743819637005,3.97828,1817.8,1817.7,1.447]
[1743819638111,0.77048,1817.8,1817.7,1.447]
[1743819638314,3.97828,1817.8,1817.7,1.447]
[1743819638506,2.22688,1817.8,1817.7,1.447]
[1743819638811,5.43468,1817.8,1817.7,1.447]
[1743819642519,2.22688,1817.8,1817.7,1.447]
[1743819642720,5.43468,1817.8,1817.7,1.447]
[1743819643619,2.22688,1817.8,1817.7,1.447]
[1743819643920,5.43468,1817.8,1817.7,1.447]
[1743819644619,2.22688,1817.8,1817.7,1.447]
[1743819644821,5.43468,1817.8,1817.7,1.447]
[1743819645121,2.22688,1817.8,1817.7,1.447]
[1743819645423,5.43468,1817.8,1817.7,1.447]
[1743819646423,0.77049,1817.7,1817.6,0.7482]
[1743819646624,2.23599,1817.7,1817.6,2.2308]
[1743819647927,2.23599,1817.7,1817.6,3.00133]
[1743819648830,2.23599,1817.7,1817.6,2.2308]
[1743819651734,1.4655,1817.7,1817.6,3.00133]
[1743819652133,2.23599,1817.7,1817.6,3.00133]
[1743819654837,2.23599,1817.7,1817.6,2.2308]
[1743819661733,0.77058,1817.5,1817.4,0.7391]
[1743819661936,1.92655,1817.4,1816.9,3.2078]
[1743819662240,1.92655,1817.4,1816.8,5.926]
[1743819662241,0.77083,1816.9,1816.8,5.926]
[1743819662433,0.77083,1816.9,1816.7,0.7709]
[1743819662644,1.4893,1816.8,1816.7,0.7709]
[1743819662936,1.4893,1816.8,1816.5,0.77099]
[1743819662937,0.77092,1816.7,1816.5,0.77099]
[1743819663134,2.2603,1816.6,1816.4,0.7037]
[1743819663340,2.2603,1816.5,1816.4,0.7037]
[1743819663531,2.2603,1816.5,1816.4,2.1281]
[1743819663833,0.77104,1816.4,1816.3,8.65643866]
[1743819664036,6.43684,1816.4,1816.3,8.65643866]
[1743819664245,0.77109,1816.3,1816.2,3.2078]
[1743819664436,1.4016,1816.3,1816.2,3.2078]
[1743819664637,2.17269,1816.3,1816.2,3.2078]
[1743819664838,1.4016,1816.3,1816.2,3.2078]
[1743819665029,1.4016,1816.3,1816.2,3.97893]
[1743819665237,3.504,1816.4,1816.3,0.77109]
[1743819665436,3.504,1816.4,1816.3,1.4953]
[1743819665744,4.27504,1816.4,1816.3,1.4953]
[1743819665943,4.9056,1816.4,1816.3,1.4953]
[1743819666133,4.9056,1816.4,1816.3,2.26639]
[1743819666532,4.9056,1816.4,1816.3,1.4953]
[1743819667044,4.9056,1816.4,1816.3,2.26639]
[1743819667241,3.504,1816.4,1816.3,2.26639]
[1743819667537,1.92682,1817.2,1816.3,2.26639]
[1743819667538,3.504,1816.6,1816.5,0.771]
[1743819667744,3.504,1816.8,1816.7,0.77088]
[1743819669147,4.23574516,1817.0,1816.6,3.2078]
[1743819669443,4.23574516,1817.0,1816.7,1.4191]
[1743819669745,3.51324516,1817.0,1816.9,0.77083]
[1743819670041,0.00824516,1817.0,1816.9,0.77083]
[1743819670346,0.00824516,1817.0,1816.9,2.19943]
[1743819675945,0.00824516,1817.0,1816.9,1.4286]
[1743819676450,4.93904516,1817.0,1816.8,1.47906]
[1743819676643,1.4198,1816.9,1816.8,2.99056]
[1743819683049,1.4198,1816.9,1816.8,2.28236]
[1743819688353,2.1438,1816.9,1816.8,2.28236]
[1743819691255,2.91463,1816.9,1816.8,2.28236]
[1743819691549,2.1438,1816.9,1816.8,2.28236]
[1743819692253,0.00824516,1817.0,1816.9,0.77083]
[1743819692450,5.16e-06,1817.0,1816.9,3.06463]
[1743819692656,5.16e-06,1817.0,1816.9,9.83268338]
[1743819693948,3.506,1817.6,1817.5,0.77058]
[1743819694154,6.48396,1817.8,1817.3,3.2078]
[1743819694455,5.7135,1817.8,1817.7,0.77049]
[1743819694844,0.7114,1817.8,1817.7,0.77049]
[1743819695049,4.9367,1818.1,1818.0,0.77036]
[1743819695248,4.9367,1818.1,1817.5,4.7423]
[1743819695249,4.2203,1818.1,1817.9,0.77038]
[1743819695448,0.77037,1818.0,1817.9,0.00824516]
[1743819695650,2.19347,1818.0,1817.9,0.00824516]
[1743819696468,1.4231,1818.0,1817.9,0.00824516]
[1743819696758,2.19346,1818.0,1817.9,0.00824516]
[1743819696951,1.4231,1818.0,1817.9,0.77865516]
[1743819697154,38.68534516,1818.2,1818.1,0.77032]
[1743819697155,6.73504516,1818.2,1818.1,0.77032]
[1743819697353,7.50533516,1818.2,1818.0,0.77035]
[1743819697557,1.493,1818.1,1818.0,0.77035]
[1743819697758,3.52824516,1818.2,1818.1,0.77032]
[1743819698160,0.00824516,1818.2,1818.1,0.77032]
[1743819698552,1.493,1818.6,1818.5,0.77015]
[1743819698760,5.013,1818.6,1818.2,1.4701]
[1743819698958,5.78313,1818.6,1818.2,1.4701]
[1743819699160,5.013,1818.6,1818.4,0.77017]
[1743819699355,5.013,1818.6,1818.5,1.4701]
[1743819700055,5.78311,1818.6,1818.5,1.4701]
[1743819700353,5.013,1818.6,1818.5,2.24025]
[1743819700755,5.013,1818.6,1818.5,1.4701]
[1743819700959,5.013,1818.6,1818.5,2.24025]
[1743819701462,3.52,1818.6,1818.5,2.24025]
[1743819701659,0.00824516,1818.7,1818.6,0.77011]
[1743819705065,0.00824516,1818.7,1818.5,5.44803]
[1743819706263,0.00824516,1818.7,1818.5,3.2078]
[1743819706454,2.29974516,1818.7,1818.5,3.2078]
[1743819706656,3.9108,1818.6,1817.9,0.00824516]
[1743819706963,0.77032,1818.2,1817.9,1.53754516]
[1743819707159,5.83315,1818.1,1817.9,1.53754516]
[1743819707358,0.77036,1818.0,1817.9,0.00824516]
[1743819707558,2.29716,1818.0,1817.9,0.00824516]
[1743819708161,2.29716,1818.0,1817.5,4.7371]
[1743819708162,0.77051,1817.7,1817.5,4.7371]
[1743819708360,1.5268,1817.6,1817.2,6.7438]
[1743819708561,1.5268,1817.6,1817.4,0.7706]
[1743819708562,2.29733,1817.6,1817.4,0.7706]
[1743819708757,1.5268,1817.6,1817.3,1.5293]
[1743819709161,1.5268,1817.6,1817.4,0.7706]
[1743819709364,1.53504516,1817.6,1817.5,1.5293]
[1743819711570,0.77059,1817.5,1817.3,0.00824516]
[1743819711760,1.53504516,1817.6,1817.3,0.00824516]
[1743819711956,1.53504516,1817.6,1817.4,0.77058]
[1743819712161,2.30559516,1817.6,1817.4,1.5281]
[1743819712761,2.30559516,1817.6,1817.4,2.29872]
[1743819713168,2.30559516,1817.6,1817.4,1.5281]
[1743819713566,3.02549516,1817.6,1817.4,1.5281]
[1743819714071,3.02549516,1817.6,1817.3,0.77887516]
[1743819714267,3.02549516,1817.6,1817.3,2.16747516]
[1743819714461,3.02549516,1817.6,1817.4,0.77061]
[1743819716055,3.02549516,1817.6,1817.3,1.39684516]
[1743819716262,3.02549516,1817.6,1817.3,2.16747516]
[1743819719473,0.77059,1817.5,1817.3,2.16747516]
[1743819719672,2.22189,1817.5,1817.3,2.16747516]
[1743819719861,2.22189,1817.5,1817.3,2.16750516]
[1743819720065,3.534,1817.4,1817.3,2.16750516]
[1743819720268,4.9853,1817.4,1817.3,2.16750516]
[1743819724473,5.75592,1817.4,1817.3,1.39684516]
[1743819724772,4.9853,1817.4,1817.3,2.16750516]
[1743819725174,5.75592,1817.4,1817.3,0.00824516]
[1743819725971,4.9853,1817.4,1817.3,0.77890516]
[1743819726172,4.9853,1817.4,1817.3,2.25660516]
[1743819726373,5.75592,1817.4,1817.3,2.25660516]
[1743819726574,4.9853,1817.4,1817.3,2.25660516]
[1743819726874,5.75592,1817.4,1817.3,2.25660516]
[1743819727276,4.9853,1817.4,1817.3,2.25660516]
[1743819727778,5.75592,1817.4,1817.3,2.25660516]
[1743819728473,5.75592,1817.4,1817.3,1.48594516]
[1743819729274,5.75592,1817.4,1817.3,2.25660516]
[1743819729775,5.75592,1817.4,1817.3,1.48594516]
[1743819730279,5.75592,1817.4,1817.3,0.00824516]
[1743819730974,6.45942,1817.4,1817.3,0.00824516]
[1743819733176,5.6888,1817.4,1817.3,0.77890516]
[1743819733478,6.45942,1817.4,1817.3,0.77890516]
[1743819733776,5.6888,1817.4,1817.3,0.77890516]
[1743819733973,6.45942,1817.4,1817.3,0.00824516]
[1743819734682,6.45942,1817.4,1817.3,1.40184516]
[1743819735879,5.75592,1817.4,1817.3,1.40184516]
[1743819736079,3.2078,1817.5,1817.3,1.40184516]
[1743819736080,3.97839,1817.5,1817.3,1.40184516]
[1743819736282,3.2078,1817.5,1817.4,0.77062]
[1743819736473,7.50338,1817.5,1817.4,0.77062]
[1743819736975,7.50338,1817.5,1817.3,2.17248516]
[1743819737475,7.50338,1817.5,1817.4,1.4378]
[1743819738084,8.89908,1817.5,1817.4,1.4378]
[1743819738275,8.89908,1817.5,1817.4,2.20842]
[1743819738981,7.50338,1817.5,1817.4,2.20842]
[1743819739386,6.7328,1817.5,1817.4,2.20842]
[1743819739881,3.525,1817.5,1817.4,2.20842]
[1743819740284,4.29558,1817.5,1817.4,1.4378]
[1743819740483,5.72468,1817.5,1817.4,1.4378]
[1743819742083,4.9541,1817.5,1817.4,2.20842]
[1743819742790,2.36384978,1818.1,1817.4,2.20842]
[1743819742791,3.2078,1818.1,1817.5,0.77058]
[1743819742978,3.2078,1818.1,1818.0,0.77036]
[1743819743178,3.97812,1818.1,1817.9,0.77039]
[1743819743482,5.39732,1818.1,1818.0,1.418]
[1743819745187,0.77038,1818.0,1817.8,0.77043]
[1743819745390,2.18958,1818.0,1817.8,0.77043]
[1743819745886,1.4192,1817.9,1817.8,0.77043]
[1743819747487,0.77035,1818.1,1817.9,0.77039]
[1743819747688,2.25285,1818.1,1817.9,0.77039]
[1743819748287,0.77036,1818.0,1817.8,2.17723]
[1743819748482,2.25286,1818.0,1817.8,2.17723]
[1743819749089,1.5065,1817.9,1817.8,2.17723]
[1743819750993,1.5065,1817.9,1817.7,3.97826]
[1743819751194,5.7821,1817.9,1817.5,3.905]
[1743819751393,3.9385,1817.8,1817.4,2.24031]
[1743819751597,0.77056,1817.6,1817.4,2.24031]
[1743819751783,1.5065,1817.5,1817.4,2.24031]
[1743819754794,1.5065,1817.5,1817.3,0.00824516]
[1743819754991,0.77062,1817.4,1817.3,0.00824516]
[1743819755187,3.04571,1817.5,1817.3,0.77889516]
[1743819755393,1.5044,1817.4,1817.3,0.77889516]
[1743819755690,1.5044,1817.4,1817.3,2.20189516]
[1743819755890,4.2567,1817.8,1817.3,7.13904516]
[1743819756095,3.526,1817.8,1817.7,0.77049]
[1743819756989,3.526,1817.8,1817.7,2.19349]
[1743819758097,3.526,1818.0,1817.9,0.7704]
[1743819758498,3.526,1818.0,1817.9,2.1568]
[1743819759099,4.29636,1818.0,1817.9,1.3864]
[1743819760299,4.29636,1818.0,1817.9,2.15681]
[1743819761193,5.79896,1818.0,1817.9,1.3864]
[1743819761700,5.79896,1818.0,1817.9,2.15681]
[1743819761901,5.0286,1818.0,1817.9,2.15681]
[1743819763503,5.79896,1818.0,1817.9,2.15681]
[1743819763704,5.0286,1818.0,1817.9,2.15681]
[1743819765503,5.79896,1818.0,1817.9,2.15681]
[1743819765703,5.79896,1818.0,1817.9,1.3864]
[1743819767708,5.79896,1818.0,1817.9,2.15681]
[1743819767900,5.0286,1818.0,1817.9,2.15681]
[1743819770109,5.79896,1818.0,1817.9,2.15681]
[1743819770513,5.79896,1818.0,1817.9,1.3864]
[1743819771109,5.79896,1818.0,1817.9,2.15681]
[1743819771313,0.77041,1817.9,1817.8,0.7172]
[1743819771516,5.0286,1818.0,1817.7,5.46578]
[1743819771815,1.4065,1817.8,1817.7,5.46578]
[1743819772113,1.4065,1817.8,1817.7,2.25798]
[1743819772310,1.4065,1817.8,1817.7,5.46578]
[1743819774016,0.77042,1817.9,1817.7,5.46578]
[1743819774209,2.16092,1817.9,1817.8,1.5019]
[1743819774610,1.3905,1817.9,1817.8,2.27235]
[1743819775319,4.29639,1818.0,1817.8,2.27235]
[1743819775517,5.68689,1818.0,1817.9,1.5019]
[1743819775717,5.68689,1818.0,1817.9,2.27231]
[1743819776915,0.77036,1818.0,1817.9,2.27231]
[1743819777309,6.4191,1818.1,1817.9,2.27231]
[1743819777515,6.4191,1818.1,1817.9,0.77041]
[1743819777712,7.18946,1818.1,1817.9,0.77041]
[1743819778917,0.77036,1818.0,1817.9,0.77041]
[1743819779218,1.4401,1818.0,1817.9,0.77041]
[1743819782417,1.4401,1818.0,1817.8,0.77043]
[1743819783120,0.77041,1817.9,1817.8,0.77043]
[1743819783420,2.21049,1818.0,1817.8,0.77043]
[1743819783622,1.4401,1818.0,1817.9,0.77041]
[1743819786222,2.21046,1818.0,1817.8,0.77042]
[1743819787223,1.4558,1817.9,1817.8,0.77042]
[1743819788021,5.74934,1818.1,1817.9,0.77038]
[1743819788223,7.20514,1818.1,1817.9,0.77038]
[1743819788422,1.4558,1818.0,1817.9,0.77038]
[1743819789331,3.51924516,1818.2,1818.1,0.77032]
[1743819789817,4.28952516,1818.2,1818.0,2.22124]
[1743819790423,4.93234516,1818.2,1818.1,0.77032]
[1743819790624,4.93234516,1818.2,1818.0,1.4509]
[1743819790823,0.77032,1818.1,1818.0,1.4509]
[1743819791121,0.77036,1818.0,1817.9,0.77041]
[1743819791325,0.77036,1818.0,1817.8,0.77042]
[1743819791520,2.18346,1818.0,1817.8,0.77042]
[1743819791722,2.18346,1818.0,1817.9,0.77041]
[1743819793127,1.4131,1818.0,1817.9,0.77041]
[1743819793422,2.18346,1818.0,1817.9,0.77041]
[1743819793626,2.18346,1818.0,1817.8,0.77042]
[1743819794326,2.18346,1818.0,1817.9,1.4021]
[1743819794727,1.4131,1818.0,1817.9,2.17251]
[1743819795728,0.716,1818.1,1818.0,0.77036]
[1743819795928,0.716,1818.1,1818.0,2.98106]
[1743819796131,7.49735516,1818.2,1818.0,2.98106]
[1743819796328,9.66505516,1818.2,1818.0,2.98106]
[1743819796929,0.77032,1818.1,1818.0,2.98106]
[1743819797832,0.77032,1818.1,1818.0,1.5115]
[1743819798128,0.77039,1818.0,1817.8,1.47912]
[1743819798430,0.77039,1818.0,1817.9,0.77041]
[1743819798431,1.49349,1818.0,1817.9,0.77041]
[1743819798827,1.49349,1818.0,1817.9,2.27561]
[1743819799228,1.49349,1818.0,1817.9,1.5052]
[1743819799630,1.49349,1818.0,1817.9,2.27561]
[1743819799831,1.49349,1818.0,1817.9,1.5052]
[1743819800032,1.49349,1818.0,1817.9,2.27561]
[1743819800619,0.7231,1818.0,1817.9,2.27561]
[1743819800832,2.28655,1818.1,1817.9,2.27561]
[1743819801232,2.28655,1818.1,1818.0,1.5174]
[1743819801532,2.28655,1818.1,1818.0,2.28776]
[1743819802129,1.5162,1818.1,1818.0,2.28776]
[1743819802335,3.95584516,1818.2,1818.1,0.77032]
[1743819802537,3.21604516,1818.2,1818.1,2.99932]
[1743819806333,3.21604516,1818.2,1818.1,2.229]
[1743819806538,0.77036,1818.1,1817.9,0.77039]
[1743819806837,2.92066,1818.1,1817.9,0.77039]
[1743819807433,2.17256,1818.0,1817.9,1.4159]
[1743819807639,2.17256,1818.0,1817.9,2.18631]
[1743819807836,0.00824516,1818.2,1818.1,0.77032]
[1743819808744,0.00824516,1818.2,1818.1,2.23862]
[1743819811147,0.77852516,1818.2,1818.1,2.23862]
[1743819811345,2.24492516,1818.2,1818.1,1.4683]
[1743819811845,2.24492516,1818.2,1818.1,2.23862]
[1743819812145,1.47464516,1818.2,1818.1,3.76342]
[1743819816154,2.21544516,1818.2,1818.1,3.76342]
[1743819817250,0.74904516,1818.2,1818.1,3.76342]
[1743819817650,0.00824516,1818.2,1818.1,3.76342]
[1743819820751,0.00824516,1818.2,1818.1,2.2445]
[1743819820954,1.47806516,1818.2,1818.0,0.77034]
[1743819821156,1.4391,1818.1,1818.0,2.20944]
[1743819821661,2.20942,1818.1,1818.0,2.20944]
[1743819821849,2.1861,1818.1,1818.0,2.20944]
[1743819824758,2.1861,1818.1,1818.0,2.91384]
[1743819825860,2.95642,1818.1,1818.0,2.91384]
[1743819826161,2.1861,1818.1,1818.0,2.91384]
[1743819830862,2.1861,1818.1,1817.9,3.97818]
[1743819831053,1.4803,1818.0,1817.9,0.77038]
[1743819833960,5.03035,1818.1,1818.0,0.77036]
[1743819834566,4.26,1818.1,1818.0,0.77036]
[1743819834768,5.7461,1818.1,1818.0,0.77036]
[1743819835066,6.51642,1818.1,1818.0,0.77036]
[1743819841063,5.7461,1818.1,1818.0,0.77036]
[1743819841575,5.7461,1818.1,1818.0,2.20216]
[1743819845468,4.26,1818.1,1818.0,2.20216]
[1743819847377,3.513,1818.1,1818.0,2.20216]
[1743819848874,3.513,1818.1,1818.0,3.63006]
[1743819850877,3.2078,1818.4,1818.0,6.1235927]
[1743819851074,5.75449,1818.7,1818.1,7.3314027]
[1743819851273,5.75449,1818.7,1818.6,0.77011]
[1743819851477,7.14549,1818.7,1818.5,0.77013]